bitfinex-derivatives/quotes_BTCF0:USTF0_20260127
["timestamp","ask_amount","ask_price","bid_price","bid_amount"]
[1769488906633,0.11279253,88769.0,88747.0,0.124164]
[1769488906829,0.10436879,88768.0,88750.0,0.16226343]
[1769488907029,0.11179253,88766.0,88750.0,0.16226343]
[1769488908033,0.11179253,88766.0,88747.0,0.124164]
[1769488909129,0.11179253,88766.0,88742.0,0.10152]
[1769488909130,0.11179253,88766.0,88743.0,0.124164]
[1769488909324,0.11279253,88766.0,88751.0,0.112882]
[1769488910140,0.11179253,88766.0,88751.0,0.112882]
[1769488915642,0.11179253,88766.0,88750.0,0.16226343]
[1769488917339,0.11179253,88766.0,88750.0,0.27325465]
[1769488917643,0.11179253,88766.0,88751.0,0.11099122]
[1769488922144,0.10607587,88784.0,88763.0,0.11099122]
[1769488922350,0.10607587,88782.0,88763.0,0.11099122]
[1769488922552,0.11266526,88779.0,88763.0,0.11099122]
[1769488922747,0.10429796,88778.0,88763.0,0.11099122]
[1769488923047,0.10429796,88777.0,88763.0,0.11099122]
[1769488923253,0.10429796,88776.0,88763.0,0.11099122]
[1769488923447,0.10429796,88775.0,88763.0,0.11199122]
[1769488923646,0.1029278,88773.0,88763.0,0.001]
[1769488924643,0.1029278,88773.0,88758.0,0.11099122]
[1769488925651,0.1039278,88773.0,88758.0,0.11099122]
[1769488926348,0.10389365,88772.0,88758.0,0.11099122]
[1769488926553,0.10389365,88771.0,88758.0,0.11099122]
[1769488926739,0.1029278,88773.0,88758.0,0.11099122]
[1769488926947,0.10389897,88772.0,88758.0,0.11099122]
[1769488927146,0.10389897,88771.0,88758.0,0.11099122]
[1769488927347,0.1029278,88773.0,88758.0,0.11099122]
[1769488927555,0.10391822,88772.0,88758.0,0.11099122]
[1769488927757,0.10391822,88771.0,88758.0,0.11099122]
[1769488928056,0.1029278,88773.0,88758.0,0.11099122]
[1769488928250,0.10392976,88772.0,88758.0,0.11099122]
[1769488928452,0.10392976,88771.0,88758.0,0.11099122]
[1769488928651,0.10371242,88772.0,88758.0,0.11099122]
[1769488928852,0.20764462,88771.0,88758.0,0.11099122]
[1769488929052,0.1039322,88770.0,88758.0,0.11099122]
[1769488929245,0.10371242,88771.0,88758.0,0.11099122]
[1769488929450,0.10394883,88770.0,88758.0,0.11099122]
[1769488929649,0.10371242,88771.0,88758.0,0.11099122]
[1769488929849,0.1039487,88770.0,88758.0,0.11099122]
[1769488930050,0.10371242,88771.0,88758.0,0.11099122]
[1769488930251,0.1039677,88770.0,88758.0,0.11099122]
[1769488930455,0.10371242,88771.0,88758.0,0.11099122]
[1769488930658,0.1039688,88770.0,88758.0,0.11099122]
[1769488930851,0.1039688,88769.0,88758.0,0.11099122]
[1769488931051,0.1039688,88768.0,88758.0,0.11099122]
[1769488931260,0.1039688,88767.0,88758.0,0.11099122]
[1769488931453,0.10371242,88771.0,88758.0,0.11099122]
[1769488931653,0.10399538,88770.0,88758.0,0.11099122]
[1769488931853,0.10399538,88769.0,88758.0,0.11099122]
[1769488932056,0.10399538,88768.0,88758.0,0.11099122]
[1769488932252,0.10399538,88767.0,88758.0,0.11099122]
[1769488932455,0.10371242,88771.0,88758.0,0.11099122]
[1769488932658,0.10399759,88770.0,88758.0,0.11099122]
[1769488932861,0.20961036,88769.0,88754.0,0.11099122]
[1769488933054,0.10561277,88767.0,88754.0,0.11099122]
[1769488933251,0.10561277,88767.0,88753.0,0.10152]
[1769488933861,0.10561277,88767.0,88753.0,0.21251122]
[1769488934761,0.10561277,88767.0,88754.0,0.11099122]
[1769488936950,0.09846377,88773.0,88754.0,0.11099122]
[1769488937956,0.09846377,88773.0,88756.0,0.11099122]
[1769488939362,0.09846377,88773.0,88754.0,0.001]
[1769488939955,0.09846377,88773.0,88751.0,0.011281]
[1769488940155,0.09846377,88773.0,88751.0,0.12227222]
[1769488940658,0.09791125,88771.0,88751.0,0.24631835]
[1769488940858,0.09791125,88771.0,88754.0,0.001]
[1769488941563,0.09791125,88771.0,88751.0,0.24631835]
[1769488941759,0.09791125,88771.0,88751.0,0.24731835]
[1769488942356,0.09791125,88771.0,88751.0,0.11199122]
[1769488943164,0.09791125,88771.0,88751.0,0.11099122]
[1769488944567,0.09793366,88769.0,88751.0,0.11099122]
[1769488944867,0.09793366,88769.0,88752.0,0.12550577]
[1769488945268,0.09793366,88769.0,88752.0,0.11422477]
[1769488948370,0.10921266,88769.0,88752.0,0.11422477]
[1769488949070,0.09793366,88769.0,88752.0,0.11422477]
[1769488957473,0.09516734,88767.0,88752.0,0.11422477]
[1769488958474,0.09516734,88767.0,88750.0,0.13532713]
[1769488958978,0.10644734,88764.0,88750.0,0.13532713]
[1769488959176,0.09516734,88764.0,88750.0,0.13532713]
[1769488960080,0.09616734,88764.0,88750.0,0.13532713]
[1769488960272,0.001,88764.0,88751.0,0.12550577]
[1769488961373,0.09428109,88769.0,88751.0,0.11422477]
[1769488962279,0.10556009,88769.0,88751.0,0.11422477]
[1769488962489,0.09457462,88766.0,88751.0,0.11422477]
[1769488963478,0.10579858,88765.0,88751.0,0.11422477]
[1769488964687,0.10679858,88765.0,88751.0,0.11422477]
[1769488965984,0.10579858,88765.0,88751.0,0.11422477]
[1769488966184,0.10679858,88765.0,88751.0,0.11422477]
[1769488966793,0.10579858,88765.0,88751.0,0.11422477]
[1769488966984,0.10679858,88765.0,88751.0,0.11422477]
[1769488967488,0.09551958,88765.0,88750.0,0.13532713]
[1769488967677,0.09499716,88756.0,88747.0,0.10152]
[1769488968385,0.09499716,88756.0,88743.0,0.11422477]
[1769488970088,0.09599716,88756.0,88743.0,0.11422477]
[1769488971279,0.001,88756.0,88743.0,0.11422477]
[1769488972688,0.19715227,88760.0,88743.0,0.11422477]
[1769488973077,0.10658552,88759.0,88743.0,0.11422477]
[1769488974588,0.09530552,88756.0,88739.0,0.10821591]
[1769488975690,0.09530552,88756.0,88739.0,0.11949791]
[1769488976689,0.09530552,88756.0,88742.0,0.10821591]
[1769488981181,0.10609376,88755.0,88742.0,0.10821591]
[1769488981381,0.09481276,88755.0,88742.0,0.10821591]
[1769488982280,0.09581276,88755.0,88742.0,0.10821591]
[1769488982790,0.001,88755.0,88742.0,0.10821591]
[1769488984583,0.09481276,88757.0,88742.0,0.10821591]
[1769488984783,0.001,88755.0,88742.0,0.10821591]
[1769488985690,0.09581276,88757.0,88742.0,0.10821591]
[1769488985892,0.10425482,88756.0,88742.0,0.10821591]
[1769488986187,0.09581276,88757.0,88742.0,0.10821591]
[1769488986399,0.10425777,88756.0,88742.0,0.10821591]
[1769488986584,0.09488647,88756.0,88742.0,0.10821591]
[1769488986989,0.09488647,88755.0,88742.0,0.10821591]
[1769488987195,0.11554299,88754.0,88742.0,0.10821591]
[1769488987395,0.09488647,88755.0,88742.0,0.10821591]
[1769488987593,0.1042617,88754.0,88742.0,0.10821591]
[1769488987894,0.09488647,88755.0,88742.0,0.10821591]
[1769488988094,0.10426156,88754.0,88742.0,0.10821591]
[1769488988294,0.09488647,88755.0,88742.0,0.10821591]
[1769488988594,0.10426262,88754.0,88742.0,0.10821591]
[1769488988790,0.001,88754.0,88742.0,0.10821591]
[1769488989593,0.001,88755.0,88742.0,0.10821591]
[1769488989993,0.09707683,88755.0,88742.0,0.10821591]
[1769488990994,0.09607683,88755.0,88742.0,0.10821591]
[1769488991199,0.001,88754.0,88742.0,0.10821591]
[1769488991697,0.09607683,88755.0,88742.0,0.10821591]
[1769488991999,0.001,88755.0,88742.0,0.10821591]
[1769488992693,0.001,88754.0,88742.0,0.10821591]
[1769488994099,0.09965572,88758.0,88742.0,0.10821591]
[1769488994293,0.10429237,88757.0,88742.0,0.10821591]
[1769488994494,0.10429237,88756.0,88742.0,0.10821591]
[1769488994689,0.09965572,88758.0,88742.0,0.10821591]
[1769488994902,0.10430367,88757.0,88742.0,0.10821591]
[1769488995093,0.10430367,88756.0,88742.0,0.10821591]
[1769488995295,0.09965572,88758.0,88742.0,0.10821591]
[1769488995502,0.10431914,88757.0,88742.0,0.10821591]
[1769488995701,0.10431914,88756.0,88742.0,0.10821591]
[1769488995902,0.09965572,88758.0,88742.0,0.10821591]
[1769488996203,0.10431991,88757.0,88742.0,0.10821591]
[1769488996401,0.10431991,88756.0,88742.0,0.10821591]
[1769488996602,0.09965572,88758.0,88742.0,0.10821591]
[1769488996811,0.10434596,88757.0,88742.0,0.10821591]
[1769488997001,0.10434596,88756.0,88742.0,0.10821591]
[1769488997203,0.10434596,88755.0,88742.0,0.10821591]
[1769488997396,0.10434596,88754.0,88742.0,0.10821591]
[1769488997596,0.10434596,88753.0,88742.0,0.10821591]
[1769488997797,0.09965572,88758.0,88742.0,0.10821591]
[1769488997998,0.10585965,88757.0,88742.0,0.10821591]
[1769488998198,0.09965572,88758.0,88742.0,0.10821591]
[1769488998199,0.10585965,88756.0,88742.0,0.10821591]
[1769488998396,0.10585965,88755.0,88742.0,0.10821591]
[1769488998596,0.10585965,88754.0,88742.0,0.10821591]
[1769488998797,0.10585965,88753.0,88742.0,0.10821591]
[1769488998997,0.09965572,88758.0,88742.0,0.10821591]
[1769488999207,0.1058632,88757.0,88742.0,0.10821591]
[1769488999407,0.1058632,88756.0,88742.0,0.10821591]
[1769488999593,0.1058632,88755.0,88742.0,0.10821591]
[1769488999797,0.1058632,88754.0,88742.0,0.10821591]
[1769488999997,0.1058632,88753.0,88742.0,0.10821591]
[1769489000193,0.09965572,88758.0,88742.0,0.10821591]
[1769489000398,0.10586543,88757.0,88742.0,0.10821591]
[1769489000600,0.20738543,88756.0,88742.0,0.10821591]
[1769489000799,0.10586543,88755.0,88742.0,0.10821591]
[1769489001000,0.10586543,88754.0,88742.0,0.10821591]
[1769489001202,0.10586543,88753.0,88742.0,0.10821591]
[1769489001500,0.10152,88756.0,88742.0,0.10821591]
[1769489001701,0.10586658,88755.0,88742.0,0.10821591]
[1769489001901,0.10586658,88754.0,88742.0,0.10821591]
[1769489002113,0.10586658,88753.0,88742.0,0.10821591]
[1769489002309,0.09964926,88753.0,88742.0,0.10821591]
[1769489002504,0.09964926,88753.0,88738.0,0.11624428]
[1769489002902,0.16236366,88750.0,88738.0,0.11624428]
[1769489003312,0.16236366,88750.0,88738.0,0.10973402]
[1769489006113,0.011281,88752.0,88738.0,0.10973402]
[1769489006507,0.001,88750.0,88738.0,0.10973402]
[1769489007117,0.011281,88752.0,88738.0,0.10973402]
[1769489007820,0.11640746,88752.0,88738.0,0.10973402]
[1769489008314,0.16236366,88750.0,88738.0,0.10973402]
[1769489008516,0.10512646,88747.0,88733.0,0.10152]
[1769489008710,0.10512646,88742.0,88733.0,0.10152]
[1769489009221,0.10512646,88742.0,88727.0,0.10973402]
[1769489009409,0.16236366,88740.0,88727.0,0.10973402]
[1769489009611,0.10512646,88742.0,88727.0,0.10973402]
[1769489010414,0.10514914,88739.0,88727.0,0.10973402]
[1769489011832,0.10152,88746.0,88728.0,0.011284]
[1769489011833,0.10237576,88743.0,88728.0,0.011284]
[1769489012029,0.10237576,88759.0,88736.0,0.10973402]
[1769489012230,0.10237576,88757.0,88741.0,0.10973402]
[1769489012440,0.11269764,88753.0,88741.0,0.10973402]
[1769489012734,0.10578633,88752.0,88741.0,0.10973402]
[1769489012934,0.10578633,88751.0,88741.0,0.10973402]
[1769489013137,0.10578633,88750.0,88741.0,0.10973402]
[1769489013332,0.10578633,88749.0,88741.0,0.10973402]
[1769489013532,0.10152,88756.0,88741.0,0.10973402]
[1769489013730,0.2180761,88755.0,88741.0,0.10973402]
[1769489013932,0.10539624,88754.0,88741.0,0.10973402]
[1769489014131,0.10539624,88753.0,88741.0,0.10973402]
[1769489014332,0.10539624,88752.0,88741.0,0.10973402]
[1769489014532,0.10539624,88751.0,88741.0,0.10973402]
[1769489014732,0.10539624,88750.0,88741.0,0.10973402]
[1769489014932,0.10539624,88749.0,88741.0,0.10973402]
[1769489015126,0.10152,88756.0,88741.0,0.10973402]
[1769489015332,0.10539267,88755.0,88741.0,0.10973402]
[1769489015633,0.10539267,88754.0,88741.0,0.10973402]
[1769489015941,0.10539267,88753.0,88741.0,0.10973402]
[1769489016140,0.10539267,88752.0,88741.0,0.10973402]
[1769489016342,0.10539267,88751.0,88741.0,0.10973402]
[1769489016643,0.10539267,88750.0,88741.0,0.10973402]
[1769489016939,0.001,88754.0,88741.0,0.10973402]
[1769489017135,0.10538907,88753.0,88741.0,0.10973402]
[1769489017442,0.10538907,88752.0,88741.0,0.10973402]
[1769489017638,0.10252,88754.0,88741.0,0.10973402]
[1769489017639,0.10538907,88751.0,88741.0,0.10973402]
[1769489017838,0.10638907,88750.0,88741.0,0.10973402]
[1769489018040,0.001,88750.0,88741.0,0.10973402]
[1769489018936,0.10065526,88765.0,88741.0,0.12101602]
[1769489019131,0.4672,88763.0,88741.0,0.12101602]
[1769489019330,0.10538616,88762.0,88741.0,0.12101602]
[1769489019539,0.20715037,88762.0,88741.0,0.12101602]
[1769489019732,0.10176421,88762.0,88741.0,0.12101602]
[1769489021238,0.10176421,88762.0,88744.0,0.10973402]
[1769489027549,0.10176421,88762.0,88744.0,0.11073402]
[1769489028247,0.11504696,88761.0,88744.0,0.11073402]
[1769489029057,0.4672,88763.0,88740.0,0.09017762]
[1769489029058,0.10373786,88753.0,88740.0,0.09017762]
[1769489029239,0.10373786,88753.0,88736.0,0.13527079]
[1769489029240,0.10373786,88749.0,88735.0,0.09017762]
[1769489029743,0.10373786,88749.0,88736.0,0.09017762]
[1769489030743,0.10373786,88749.0,88735.0,0.10973402]
[1769489031053,0.10373786,88749.0,88736.0,0.12101702]
[1769489031736,0.10373786,88749.0,88736.0,0.10973402]
[1769489033444,0.10373786,88749.0,88731.0,0.19169762]
[1769489033645,0.10373786,88749.0,88732.0,0.11871183]
[1769489034151,0.10373786,88749.0,88733.0,0.011283]
[1769489034540,0.10373786,88749.0,88733.0,0.11871183]
[1769489035752,0.10373786,88749.0,88734.0,0.12999483]
[1769489038954,0.10373786,88749.0,88734.0,0.11871183]
[1769489040655,0.10373786,88749.0,88735.0,0.09017762]
[1769489040846,0.10373786,88749.0,88735.0,0.20888945]
[1769489043255,0.10373786,88749.0,88736.0,0.09017762]
[1769489045261,0.10373786,88749.0,88736.0,0.20888945]
[1769489045759,0.10373786,88749.0,88737.0,0.11871183]
[1769489046460,0.10152,88752.0,88737.0,0.11871183]
[1769489046755,0.10152,88751.0,88738.0,0.011283]
[1769489046958,0.10152,88751.0,88739.0,0.11871183]
[1769489052167,0.21282567,88751.0,88739.0,0.11871183]
[1769489053076,0.10152,88751.0,88739.0,0.11871183]
[1769489054463,0.11130567,88750.0,88736.0,0.09017762]
[1769489054670,0.27366933,88750.0,88737.0,0.11871183]
[1769489057572,0.11130567,88745.0,88736.0,0.09017762]
[1769489057874,0.11130567,88745.0,88724.0,0.5819427]
[1769489057875,0.11130567,88745.0,88734.0,0.09017762]
[1769489059574,0.11268938,88744.0,88734.0,0.09017762]
[1769489059769,0.11268938,88744.0,88730.0,0.13527079]
[1769489059770,0.11130567,88743.0,88733.0,0.09017762]
[1769489060370,0.11130567,88748.0,88733.0,0.09017762]
[1769489060675,0.11235429,88747.0,88732.0,0.20888945]
[1769489060873,0.11235429,88747.0,88732.0,0.11871183]
[1769489061378,0.11235429,88745.0,88732.0,0.11871183]
[1769489062077,0.11268938,88744.0,88732.0,0.11871183]
[1769489065275,0.10152,88743.0,88732.0,0.11871183]
[1769489065576,0.10152,88747.0,88732.0,0.11871183]
[1769489067175,0.11449084,88752.0,88732.0,0.11871183]
[1769489067376,0.10152,88751.0,88732.0,0.11871183]
[1769489067572,0.21420938,88751.0,88732.0,0.11871183]
[1769489070872,0.32870022,88751.0,88732.0,0.11871183]
[1769489071277,0.22718022,88751.0,88734.0,0.11856971]
[1769489071478,0.10152,88750.0,88734.0,0.11856971]
[1769489072072,0.11268684,88749.0,88734.0,0.11856971]
[1769489080380,0.11449084,88748.0,88734.0,0.11856971]
[1769489088794,0.11449084,88748.0,88734.0,0.12985271]
[1769489089191,0.11449084,88748.0,88734.0,0.11856971]
[1769489108723,0.11449084,88748.0,88731.0,0.13527079]
[1769489109211,0.11449084,88748.0,88730.0,0.13527079]
[1769489109917,0.11449084,88748.0,88730.0,0.2477147]
[1769489110615,0.11526901,88746.0,88730.0,0.2477147]
[1769489112616,0.11526901,88746.0,88731.0,0.11244391]
[1769489117418,0.12655101,88746.0,88731.0,0.11244391]
[1769489117716,0.11526901,88746.0,88731.0,0.11244391]
[1769489121218,0.12655101,88746.0,88731.0,0.11244391]
[1769489122213,0.12655101,88746.0,88727.0,0.25462977]
[1769489122411,0.12655101,88746.0,88728.0,0.11935898]
[1769489126214,0.11526901,88746.0,88728.0,0.11935898]
[1769489127418,0.12655101,88746.0,88728.0,0.11935898]
[1769489129705,0.11526901,88746.0,88728.0,0.11935898]
[1769489129911,0.11500851,88742.0,88728.0,0.11935898]
[1769489130709,0.11500851,88742.0,88730.0,0.13527079]
[1769489133422,0.011282,88744.0,88731.0,0.11935898]
[1769489133724,0.12629051,88744.0,88731.0,0.11935898]
[1769489134914,0.11500851,88744.0,88731.0,0.11935898]
[1769489139220,0.11500851,88744.0,88731.0,0.25462977]
[1769489140518,0.11500851,88744.0,88731.0,0.11935898]
[1769489141026,0.011282,88743.0,88731.0,0.11935898]
[1769489141825,0.12629051,88743.0,88731.0,0.11935898]
[1769489143125,0.12729051,88743.0,88731.0,0.11935898]
[1769489144727,0.11600851,88743.0,88731.0,0.11935898]
[1769489145125,0.11500851,88743.0,88731.0,0.11935898]
[1769489149234,0.011282,88742.0,88731.0,0.11935898]
[1769489149732,0.11500851,88743.0,88731.0,0.11935898]
[1769489151130,0.112802,88745.0,88731.0,0.11935898]
[1769489154030,0.112802,88745.0,88732.0,0.11453047]
[1769489155429,0.11199148,88741.0,88731.0,0.13527079]
[1769489155634,0.11199148,88741.0,88729.0,0.13527079]
[1769489156322,0.11199148,88741.0,88728.0,0.13527079]
[1769489157834,0.11199148,88741.0,88728.0,0.13627079]
[1769489158631,0.11199148,88741.0,88728.0,0.25080126]
[1769489160140,0.11199148,88741.0,88729.0,0.11453047]
[1769489161338,0.11199148,88741.0,88729.0,0.11553047]
[1769489163036,0.11199148,88741.0,88729.0,0.11453047]
[1769489164842,0.10152,88745.0,88729.0,0.11453047]
[1769489165042,0.21351148,88745.0,88729.0,0.11453047]
[1769489165340,0.21351148,88745.0,88730.0,0.16240685]
[1769489165536,0.48188,88749.0,88731.0,0.11453047]
[1769489165736,0.10152,88746.0,88731.0,0.11453047]
[1769489166136,0.10152,88745.0,88731.0,0.11453047]
[1769489182538,0.11199148,88747.0,88731.0,0.11453047]
[1769489182737,0.10152,88746.0,88731.0,0.11453047]
[1769489184654,0.21739119,88746.0,88731.0,0.11453047]
[1769489188756,0.10152,88746.0,88731.0,0.11453047]
[1769489189846,0.10152,88746.0,88733.0,0.11155548]
[1769489190253,0.11587119,88750.0,88733.0,0.11155548]
[1769489190550,0.48568,88747.0,88733.0,0.11155548]
[1769489191053,0.11587119,88750.0,88730.0,0.13527079]
[1769489191054,0.00651125,88752.0,88741.0,0.11155548]
[1769489191255,0.10152,88756.0,88741.0,0.11155548]
[1769489191653,0.10152,88756.0,88742.0,0.011282]
[1769489191958,0.10152,88756.0,88743.0,0.11155548]
[1769489193451,0.11587119,88761.0,88743.0,0.11155548]
[1769489193651,0.49468,88760.0,88745.0,0.11155548]
[1769489194961,0.31427119,88762.0,88745.0,0.11155548]
[1769489195158,0.5026,88761.0,88745.0,0.11155548]
[1769489198862,0.61847119,88761.0,88745.0,0.11155548]
[1769489204761,0.11587119,88768.0,88746.0,0.011282]
[1769489204963,0.11587119,88767.0,88749.0,0.11155548]
[1769489205267,0.11587119,88765.0,88749.0,0.11155548]
[1769489206562,0.29712,88766.0,88749.0,0.11155548]
[1769489210471,0.11587119,88765.0,88749.0,0.11155548]
[1769489212375,0.10934208,88763.0,88745.0,0.21566497]
[1769489212680,0.10934208,88763.0,88746.0,0.11414497]
[1769489215072,0.05934208,88763.0,88746.0,0.11414497]
[1769489218681,0.05934208,88763.0,88746.0,0.12542697]
[1769489219084,0.05934208,88763.0,88749.0,0.11414497]
[1769489219577,0.10934208,88767.0,88749.0,0.11414497]
[1769489219885,0.22201051,88767.0,88749.0,0.11414497]
[1769489220180,0.10934208,88766.0,88749.0,0.11414497]
[1769489228585,0.12062108,88766.0,88749.0,0.11414497]
[1769489228785,0.10934208,88766.0,88749.0,0.11414497]
[1769489229088,0.10934208,88766.0,88748.0,0.10152]
[1769489229692,0.10934208,88763.0,88748.0,0.10152]
[1769489230184,0.10934208,88763.0,88748.0,0.21566497]
[1769489230386,0.011279,88767.0,88749.0,0.11414497]
[1769489230580,0.10934208,88766.0,88749.0,0.11414497]
[1769489232284,0.10934208,88766.0,88749.0,0.11514497]
[1769489233285,0.10934208,88766.0,88750.0,0.11414497]
[1769489235293,0.10934208,88766.0,88750.0,0.11514497]
[1769489235691,0.10934208,88764.0,88750.0,0.001]
[1769489238398,0.10934208,88764.0,88750.0,0.11514497]
[1769489239098,0.10934208,88764.0,88750.0,0.11414497]
[1769489239300,0.10934208,88764.0,88750.0,0.11514497]
[1769489240901,0.10934208,88764.0,88750.0,0.11414497]
[1769489245297,0.11429578,88769.0,88750.0,0.12542597]
[1769489245496,0.11429578,88769.0,88751.0,0.11365412]
[1769489245704,0.11429578,88768.0,88751.0,0.11365412]
[1769489246307,0.11266399,88767.0,88751.0,0.11365412]
[1769489247104,0.1623241,88761.0,88749.0,0.09023065]
[1769489247400,0.11429578,88760.0,88742.0,0.13527079]
[1769489247606,0.04647256,88758.0,88743.0,0.10152]
[1769489250706,0.05775256,88758.0,88743.0,0.10152]
[1769489254506,0.05775256,88758.0,88742.0,0.13527079]
[1769489254810,0.05775256,88758.0,88743.0,0.57568]
[1769489255310,0.01128,88756.0,88743.0,0.57568]
[1769489255511,0.1623241,88753.0,88733.0,0.16851678]
[1769489255711,0.011282,88742.0,88730.0,0.10152]
[1769489255912,0.1623241,88740.0,88730.0,0.10152]
[1769489257203,0.1623241,88740.0,88721.0,0.00650972]
[1769489257204,0.011283,88736.0,88721.0,0.00650972]
[1769489257413,0.1623241,88731.0,88722.0,0.10152]
[1769489259804,0.1623241,88740.0,88722.0,0.10152]
[1769489263412,0.1623241,88740.0,88723.0,0.12]
[1769489264615,0.011283,88739.0,88722.0,0.10152]
[1769489266315,0.1623241,88740.0,88722.0,0.10152]
[1769489267214,0.011283,88738.0,88722.0,0.10152]
[1769489268314,0.10887775,88737.0,88722.0,0.10152]
[1769489268515,0.1736071,88740.0,88722.0,0.10152]
[1769489268713,0.1623241,88732.0,88713.0,0.00789065]
[1769489268916,0.11270145,88736.0,88705.0,0.011287]
[1769489268917,0.1623241,88723.0,88705.0,0.011287]
[1769489269116,0.21039775,88731.0,88696.0,0.10152]
[1769489269117,0.1623241,88720.0,88706.0,0.12]
[1769489269418,0.11270208,88722.0,88708.0,0.12011774]
[1769489269612,0.1736081,88730.0,88708.0,0.12011774]
[1769489269812,0.10883286,88729.0,88708.0,0.12011774]
[1769489270014,0.12011686,88728.0,88708.0,0.12111774]
[1769489270211,0.10883286,88727.0,88708.0,0.12111774]
[1769489270613,0.1127205,88726.0,88708.0,0.12111774]
[1769489271318,0.011284,88728.0,88708.0,0.12111774]
[1769489271519,0.11271733,88727.0,88708.0,0.12111774]
[1769489272023,0.11271669,88727.0,88708.0,0.12111774]
[1769489272925,0.10156,88726.0,88708.0,0.12111774]
[1769489273622,0.11271733,88725.0,88708.0,0.12111774]
[1769489274425,0.11271733,88725.0,88708.0,0.12011774]
[1769489277923,0.11271733,88725.0,88708.0,0.13140474]
[1769489278123,0.10156,88733.0,88711.0,0.12]
[1769489278619,0.112843,88733.0,88711.0,0.12]
[1769489278824,0.1623241,88730.0,88711.0,0.12]
[1769489279516,0.11271161,88729.0,88711.0,0.12]
[1769489280431,0.10156,88733.0,88711.0,0.12]
[1769489280432,0.10958672,88744.0,88723.0,0.11941224]
[1769489280919,0.11271415,88744.0,88731.0,0.11941224]
[1769489281128,0.10156,88752.0,88731.0,0.11941224]
[1769489281318,0.10881221,88751.0,88731.0,0.11941224]
[1769489281514,0.10881221,88750.0,88731.0,0.11941224]
[1769489281718,0.10352578,88749.0,88731.0,0.11941224]
[1769489281938,0.10881221,88748.0,88731.0,0.11941224]
[1769489282226,0.3250261,88748.0,88731.0,0.11941224]
[1769489282426,0.10881221,88747.0,88731.0,0.11941224]
[1769489282634,0.21233799,88747.0,88731.0,0.11941224]
[1769489282832,0.10352578,88747.0,88731.0,0.11941224]
[1769489283528,0.10888864,88746.0,88731.0,0.11941224]
[1769489283831,0.10352578,88747.0,88731.0,0.11941224]
[1769489284033,0.10888068,88746.0,88731.0,0.11941224]
[1769489284234,0.10352578,88747.0,88731.0,0.11941224]
[1769489284421,0.1089194,88746.0,88731.0,0.11941224]
[1769489284622,0.1089194,88745.0,88731.0,0.11941224]
[1769489284825,0.1623241,88750.0,88731.0,0.11941224]
[1769489285029,0.001,88747.0,88731.0,0.11941224]
[1769489285234,0.10891918,88746.0,88731.0,0.11941224]
[1769489285931,0.10891918,88745.0,88731.0,0.11941224]
[1769489286134,0.26861839,88750.0,88731.0,0.11941224]
[1769489286334,0.22165364,88749.0,88731.0,0.11941224]
[1769489286523,0.10599056,88747.0,88731.0,0.11941224]
[1769489286724,0.10599056,88740.0,88722.0,0.11941224]
[1769489286933,0.11727356,88740.0,88722.0,0.11941224]
[1769489287136,0.11727356,88740.0,88723.0,0.10156]
[1769489287327,0.11727356,88740.0,88723.0,0.22097224]
[1769489287632,0.1623241,88741.0,88723.0,0.22097224]
[1769489287633,0.11727356,88738.0,88723.0,0.22097224]
[1769489288339,0.10599056,88738.0,88724.0,0.11941224]
[1769489288837,0.10599056,88738.0,88723.0,0.10156]
[1769489292632,0.11727356,88738.0,88723.0,0.10156]
[1769489293534,0.11195081,88735.0,88723.0,0.10256]
[1769489293838,0.112841,88752.0,88723.0,0.10256]
[1769489293839,0.11195081,88732.0,88723.0,0.10256]
[1769489294633,0.12323481,88732.0,88723.0,0.10256]
[1769489295031,0.12323481,88732.0,88723.0,0.10156]
[1769489295232,0.12423481,88732.0,88723.0,0.10156]
[1769489296529,0.12323481,88732.0,88723.0,0.10156]
[1769489296829,0.12423481,88732.0,88723.0,0.10156]
[1769489297130,0.11295081,88732.0,88723.0,0.10156]
[1769489298035,0.11195081,88732.0,88723.0,0.10156]
[1769489298230,0.11295081,88732.0,88723.0,0.10156]
[1769489303140,0.11195081,88732.0,88723.0,0.10156]
[1769489303434,0.11295081,88732.0,88723.0,0.10156]
[1769489303640,0.00746331,88724.0,88710.0,0.11531361]
[1769489304541,0.00383859,88723.0,88710.0,0.11531361]
[1769489305534,0.001,88732.0,88710.0,0.11531361]
[1769489305535,0.01512259,88728.0,88710.0,0.11531361]
[1769489305833,0.00383859,88728.0,88710.0,0.11531361]
[1769489306839,0.00383859,88728.0,88710.0,0.11631361]
[1769489308637,0.00383859,88728.0,88709.0,0.112846]
[1769489308638,0.00383859,88728.0,88712.0,0.11903369]
[1769489309836,0.011283,88735.0,88716.0,0.11903369]
[1769489310036,0.10156,88729.0,88716.0,0.11903369]
[1769489310737,0.10910197,88728.0,88716.0,0.11903369]
[1769489310937,0.10910197,88727.0,88716.0,0.11903369]
[1769489311141,0.10910197,88726.0,88716.0,0.11903369]
[1769489311344,0.10156,88729.0,88716.0,0.11903369]
[1769489311544,0.10909697,88728.0,88716.0,0.11903369]
[1769489311746,0.10909697,88727.0,88716.0,0.11903369]
[1769489311957,0.10909697,88726.0,88716.0,0.11903369]
[1769489312245,0.10156,88729.0,88716.0,0.11903369]
[1769489312446,0.10909474,88728.0,88716.0,0.11903369]
[1769489312645,0.10909474,88727.0,88716.0,0.11903369]
[1769489312836,0.10909474,88726.0,88716.0,0.12003369]
[1769489313038,0.10156,88729.0,88716.0,0.12003369]
[1769489313236,0.10909527,88728.0,88716.0,0.12003369]
[1769489313438,0.10909527,88727.0,88716.0,0.12003369]
[1769489313638,0.10909527,88726.0,88716.0,0.11903369]
[1769489313838,0.10156,88729.0,88716.0,0.11903369]
[1769489314039,0.10909514,88728.0,88716.0,0.11903369]
[1769489314246,0.10909514,88727.0,88716.0,0.11903369]
[1769489314448,0.10909514,88726.0,88716.0,0.11903369]
[1769489314643,0.10156,88729.0,88716.0,0.11903369]
[1769489314850,0.1090967,88728.0,88716.0,0.11903369]
[1769489315040,0.1090967,88727.0,88716.0,0.11903369]
[1769489315241,0.1090967,88726.0,88716.0,0.11903369]
[1769489315442,0.1090967,88725.0,88716.0,0.11903369]
[1769489315639,0.10156,88729.0,88716.0,0.11903369]
[1769489315845,0.10910025,88728.0,88716.0,0.11903369]
[1769489316050,0.10910025,88727.0,88716.0,0.11903369]
[1769489316351,0.10910025,88726.0,88716.0,0.11903369]
[1769489316552,0.10910025,88725.0,88716.0,0.11903369]
[1769489316745,0.10156,88729.0,88716.0,0.11903369]
[1769489316746,0.011283,88739.0,88716.0,0.11903369]
[1769489316942,0.10910601,88738.0,88721.0,0.11775002]
[1769489317147,0.11271352,88735.0,88725.0,0.11775002]
[1769489317453,0.10910601,88734.0,88725.0,0.11775002]
[1769489317657,0.10910601,88733.0,88725.0,0.11775002]
[1769489317958,0.10910601,88732.0,88725.0,0.11775002]
[1769489318251,0.10910601,88731.0,88725.0,0.11775002]
[1769489318554,0.10910601,88730.0,88725.0,0.11775002]
[1769489318743,0.11270208,88736.0,88725.0,0.11775002]